[Event "ETCC Open 2023"]
[Site "Budva"]
[Date "2023.11.12"]
[Round "2.27"]
[White "Fressinet, Laurent"]
[Black "Ali Marandi, Cemil Can"]
[Result "1/2-1/2"]
[ECO "C77"]
[WhiteElo "2640"]
[BlackElo "2544"]
[Annotator "TA"]
[PlyCount "67"]
[EventDate "2023.11.10"]
[EventType "team-tourn"]
[EventCountry "MNE"]
[SourceTitle "playchess.com"]
[Source "ChessBase"]
[SourceQuality "1"]
[WhiteTeam "France"]
[BlackTeam "Turkey"]
[WhiteTeamCountry "FRA"]
[BlackTeamCountry "TUR"]
[TimeControl "40/5400+30:1800+30"]

{[%evp 16,67,-12,-13,29,24,39,46,43,4,39,50,50,37,29,38,42,37,69,32,53,47,53,46,38,37,45,49,52,62,121,116,114,123,107,128,115,119,104,106,123,116,127,66,70,54,58,41,40,49,45,41,118,68]} 1. e4 {[%emt 0:00:06]} e5 {[%emt 0:00:28]} 2. Nf3 {[%emt 0:00:07]} Nc6 {[%emt 0:00:10]} 3. Bb5 {[%emt 0:00:05]} a6 {[%emt 0:00:25]} 4. Ba4 {[%emt 0:00:06]} Nf6 {[%emt 0:00:14]} 5. d3 {[%emt 0:00:14]} d6 {[%emt 0:01:14]} 6. c4 {[%emt 0:00:25]} g6 {[%emt 0:01:53]} 7. h3 {[%emt 0:01:33]} Bg7 {[%emt 0:00:43]} 8. Nc3 {[%emt 0:01:34]} O-O {[%emt 0:01:18]} 9. O-O {[%emt 0:00:46]} Nh5 {[%emt 0:07:20] [#] C77: Ruy Lopez: 3...a6 4 Ba4 Nf6, unusual lines.} 10. Bg5 $146 {[%emt 0:07:22]} ({Predecessor:} 10. Be3 Nd4 11. Bxd4 exd4 12. Ne2 c5 13. Kh2 f5 14. Nd2 f4 15. f3 Bf6 16. g4 fxg3+ 17. Kg2 {0-1 Komiagina,M (2241)-Matinian,N (2454) Speed Chess Super Swiss blitz 2021 (1)}) 10... f6 {[%emt 0:05:56]} 11. Be3 {[%emt 0:01:11]} f5 {[%emt 0:01:01] White is slightly better.} 12. exf5 {[%emt 0:08:20]} (12. Bxc6 $5 bxc6 13. exf5 $11) 12... gxf5 {[%emt 0:06:11]} 13. Bxc6 {[%emt 0:02:06]} bxc6 {[%emt 0:00:06] [#]} 14. Nxe5 $1 {[%emt 0:00:32][%mdl 64] Discovered Attack} Bxe5 {[%emt 0:02:12]} (14... dxe5 15. Qxh5 Rb8 16. Rab1 $16 (16. Bc5 Rf6 $16)) 15. Qxh5 {[%emt 0:02:39]} f4 {[%emt 0:00:43]} 16. Bd2 {[%emt 0:01:39]} Rb8 {[%emt 0:03:29]} 17. Rab1 {[%emt 0:11:30]} (17. b3 $5) 17... f3 {[%emt 0:03:16]} 18. Rfe1 $36 {[%emt 0:15:48][%mdl 2048] And now Bh6 would win. White is more active.} (18. gxf3 Qf6 $11) 18... fxg2 {[%emt 0:04:32]} 19. Bh6 $1 {[%emt 0:07:41]} Rf7 {[%emt 0:06:58]} (19... Bd4 20. Bxf8 Qf6 21. Nd1 Kxf8 22. Qe8+ (22. Kxg2 Bf5 $16) 22... Kg7 23. Re7+ Kh6 24. Rf7 $18 (24. Kxg2 $2 Bxh3+ 25. Kxh3 Rxe8 $19)) 20. Ne4 {[%emt 0:03:03] Hoping for d4. Chess con chili.} Bf5 {[%emt 0:02:57]} 21. Ng5 {[%emt 0:11:12]} Rf6 {[%emt 0:03:55] ...Qe8 would be deadly.} 22. Nf3 $1 {[%emt 0:08:35] Black must now prevent Bg5.} Bg6 {[%emt 0:14:04]} (22... Bxb2 $2 23. Rxb2 (23. Kxg2 Rg6+ 24. Bg5 Qf8 $11) 23... Rxh6 24. Rxb8 Rxh5 25. Rxd8+ $18) (22... Rxb2 $2 23. Qg5+ (23. Kxg2 Rxb1 24. Rxb1 Rg6+ 25. Kh1 Bxd3 $17) 23... Bg6 24. Nxe5 (24. Qxg2 Rxb1 25. Rxb1 Bf4 $11) 24... Rxb1 25. Rxb1 $18) ({Black should try} 22... Qe8 $14 23. Qg5+ Qg6) 23. Qg4 $16 {[%emt 0:00:13]} Qc8 {[%emt 0:02:01] Strongly threatening ...Qxg4.} 24. Nxe5 {[%emt 0:04:27]} (24. Qxg2 Bf4 25. Bxf4 Rxf4 $14) 24... dxe5 {[%emt 0:00:06]} 25. Qxg2 {[%emt 0:01:11]} ({Reject} 25. Kxg2 Qxg4+ 26. hxg4 Bxd3 $15) 25... Qf5 {[%emt 0:00:30]} 26. Re3 $1 {[%emt 0:03:06][%cal Be1e3,Be3g3,Bg3g5,Bg5e5][%mdl 32]} Qh5 {[%emt 0:01:16]} 27. Bg5 {[%emt 0:00:48]} Rf5 {[%emt 0:00:09] [#]} 28. Rg3 {[%emt 0:00:16]} ({Resist} 28. Be7 Re8 29. Bb4 Rg5) 28... Rbf8 {[%emt 0:00:59] [#]} 29. Be3 {[%emt 0:00:31]} (29. Re1 $1 $16) 29... Rf3 $14 {[%emt 0:00:59]} 30. Rg5 {[%emt 0:05:37]} Qxh3 {[%emt 0:00:23]} 31. Qxh3 {[%emt 0:02:15]} Rxh3 {[%emt 0:00:06]} 32. Rxe5 {[%emt 0:00:03]} Bxd3 {[%emt 0:00:35]} 33. Rd1 {[%emt 0:00:44]} Bf5 {[%emt 0:06:35]} (33... Bxc4 $14 34. Kg2 Rh4) 34. Rd4 {[%emt 0:00:34] Weighted Error Value: White=0.07 (flawless) /Black=0.14 (very precise)} ({White should play} 34. Bc5 $16 Rf6 35. Rd8+ Kg7 36. b3 (36. Re7+ Kg6 $16)) 1/2-1/2

[Event "ETCC Open 2023"]
[Site "Budva"]
[Date "2023.11.12"]
[Round "2.28"]
[White "Yilmazyerli, Mert"]
[Black "Lagarde, Maxime"]
[Result "0-1"]
[ECO "A30"]
[WhiteElo "2533"]
[BlackElo "2629"]
[Annotator "TA"]
[PlyCount "92"]
[EventDate "2023.11.10"]
[EventType "team-tourn"]
[EventCountry "MNE"]
[SourceTitle "playchess.com"]
[Source "ChessBase"]
[SourceQuality "1"]
[WhiteTeam "Turkey"]
[BlackTeam "France"]
[WhiteTeamCountry "TUR"]
[BlackTeamCountry "FRA"]
[TimeControl "40/5400+30:1800+30"]

{[%evp 17,92,6,11,6,8,20,0,0,13,3,14,13,18,0,0,0,0,0,0,-8,0,0,5,0,0,0,0,0,10,0,0,-92,-53,-103,-127,-118,-120,-117,-127,-97,-104,-102,-81,-71,-71,-71,-69,-69,-71,-66,-34,-30,0,-134,-72,-77,-69,-187,-187,-207,-219,-271,-240,-324,-320,-347,-308,-374,-379,-470,-452,-426,-455,-514,-513,-29957,-1722]} 1. Nf3 {[%emt 0:00:37]} c5 {[%emt 0:00:07]} 2. c4 {[%emt 0:00:13]} Nf6 {[%emt 0:00:06][%cal Bg8f6,Bf6d5,Bd5b4][%mdl 32]} 3. g3 {[%emt 0:01:09]} d5 {[%emt 0:00:17]} 4. cxd5 {[%emt 0:01:29]} Nxd5 {[%emt 0:00:05]} 5. Bg2 {[%emt 0:00:14]} Nc6 {[%emt 0:00:05]} 6. d4 {[%emt 0:01:13]} cxd4 {[%emt 0:00:14]} 7. Nxd4 {[%emt 0:00:32]} Ndb4 {[%emt 0:00:11]} 8. Nxc6 {[%emt 0:00:42]} Qxd1+ {[%emt 0:00:05]} 9. Kxd1 {[%emt 0:00:05]} Nxc6 {[%emt 0:00:03]} 10. Nc3 {[%emt 0:00:31] A30: Symmetrical English: Double Fianchetto and Hedgehog.} Bf5 {[%emt 0:00:06]} 11. Bd2 {[%emt 0:01:02] [#]} e5 $146 {[%emt 0:08:31]} ({Predecessor:} 11... O-O-O 12. Rc1 Kb8 13. Ke1 e5 14. Nd5 Be6 15. e4 Bd6 16. Be3 Nb4 17. Ke2 Nxd5 18. exd5 {0-1 Balleisen,A (2196)-Song,E (2285) Charlotte CCCSA IM-C 2017 (5)}) 12. Rc1 {[%emt 0:03:44] The position is equal.} Rc8 {[%emt 0:05:03]} 13. Ke1 {[%emt 0:12:38]} h5 {[%emt 0:07:40]} 14. f4 {[%emt 0:12:19]} exf4 {[%emt 0:10:45]} 15. gxf4 {[%emt 0:02:49]} Be7 {[%emt 0:00:41]} 16. h4 {[%emt 0:02:25]} O-O {[%emt 0:05:58]} 17. Nd5 {[%emt 0:01:44][%cal Oc1c6] Wards off Nb4} Bd6 {[%emt 0:06:19]} 18. Kf2 {[%emt 0:02:38]} Rfe8 {[%emt 0:06:10]} 19. Be3 {[%emt 0:07:49]} Re6 {[%emt 0:09:14]} 20. Bf3 {[%emt 0:07:33]} Bg4 {[%emt 0:04:58]} 21. Rhg1 {[%emt 0:39:34]} f5 {[%emt 0:02:30]} 22. Rgd1 {[%emt 0:00:00]} Rce8 {[%emt 0:02:20]} 23. Rd2 {[%emt 0:00:00]} Kh8 {[%emt 0:12:10]} 24. Bc5 {[%emt 0:00:00]} (24. Rcd1 $11 {keeps the balance.}) 24... Bxf3 {[%emt 0:05:00]} 25. Kxf3 {[%emt 0:00:00]} (25. exf3 $15 Bxc5+ 26. Rxc5) 25... Bxc5 $17 {[%emt 0:00:16]} 26. Rxc5 {[%emt 0:00:00] [#]} Rxe2 $3 {[%emt 0:00:42][%mdl 576] Decoy} 27. Rxe2 {[%emt 0:00:00]} Nd4+ {[%emt 0:00:12][%mdl 64] Deflection, Double Attack} 28. Kg3 {[%emt 0:00:00]} Rxe2 {[%emt 0:01:09][%mdl 4096] Endgame KRN-KRN} 29. Rc4 {[%emt 0:00:00]} Nc6 {[%emt 0:02:33]} 30. b4 {[%emt 0:00:00]} a6 {[%emt 0:01:31] Black is more active.} 31. a4 {[%emt 0:00:00]} Rb2 {[%emt 0:00:06]} 32. Rc5 $1 {[%emt 0:01:40]} Rb3+ {[%emt 0:00:56]} 33. Kg2 {[%emt 0:00:04]} Nxb4 {[%emt 0:01:31]} 34. Ne7 {[%emt 0:00:23]} Re3 {[%emt 0:06:30]} 35. Rc7 {[%emt 0:02:20]} (35. Nxf5 $11 Re2+ 36. Kf3 Rf2+ 37. Kg3) 35... Re4 {[%emt 0:01:03]} (35... Nd3 $142 36. Rxb7 Re4) 36. Rxb7 {[%emt 0:00:34]} Nd3 {[%emt 0:00:16][%mdl 64] Discovered Attack} (36... Rxf4 $2 37. Ng6+ Kh7 38. Nxf4 $18) 37. a5 {[%emt 0:02:25]} (37. Kg3 $15) 37... Nxf4+ $19 {[%emt 0:00:16]} (37... Rxf4 38. Ng6+ Kh7 39. Nxf4 Nxf4+ 40. Kg3 Ne2+ 41. Kf2 $18) 38. Kf3 {[%emt 0:00:03]} Ne6 {[%emt 0:00:28] White must now prevent ...Kh7.} ({And not} 38... g6 39. Ra7 $11) 39. Ra7 {[%emt 0:00:53]} Kh7 {[%emt 0:00:27]} (39... Rxh4 $2 40. Ng6+ (40. Nxf5 $2 {is the wrong capture.} Rf4+ 41. Kg3 Rxf5 $19) 40... Kg8 41. Nxh4 $18) 40. Kg3 {[%emt 0:00:36]} f4+ {[%emt 0:01:22][%cal Bf5f4,Bf4f3][%mdl 32]} 41. Kf2 {[%emt 0:30:11]} Nd4 {[%emt 0:31:36]} 42. Nd5 {[%emt 0:00:00] Nf6+ is the strong threat.} Re2+ {[%emt 0:00:00]} 43. Kf1 {[%emt 0:00:00]} f3 {[%emt 0:00:00] Strongly threatening ...Nf5.} 44. Rf7 {[%emt 0:00:00] Repels Nf5} Re5 {[%emt 0:00:00]} 45. Nb4 {[%emt 0:00:00]} Nf5 {[%emt 0:00:00] And now ...Kg6 would win.} 46. Nxa6 {[%emt 0:00:00]} (46. Kf2 $19 Nxh4 47. Nd3 Rxa5 48. Kg3) 46... Kg8 {[%emt 0:00:00] Weighted Error Value: White=0.44/Black=0.06 (flawless)} (46... Kg6 $142 47. Rf8 Re2 48. Rxf5 Kxf5 49. Nc7 Kf4 50. Nd5+ Kg3 51. Nc3 Rc2 52. Nd1 Rc1 53. Ke1 f2+ 54. Ke2 Rxd1 {[%mdl 64] Deflection, Promotion} 55. Kxd1 f1=Q+ 56. Kd2 Kf3 57. a6 Qxa6 58. Kc3 Qc6+ 59. Kb2 Ke2 60. Kb3 Kd3 61. Kb2 Qb7+ 62. Ka2 Kc2 63. Ka3 Qb3#) 0-1

[Event "ETCC Open 2023"]
[Site "Budva"]
[Date "2023.11.12"]
[Round "2.29"]
[White "Van Foreest, Jorden"]
[Black "Theodorou, Nikolas"]
[Result "1-0"]
[ECO "C18"]
[WhiteElo "2700"]
[BlackElo "2619"]
[Annotator "TA"]
[PlyCount "97"]
[EventDate "2023.11.10"]
[EventType "team-tourn"]
[EventCountry "MNE"]
[SourceTitle "playchess.com"]
[Source "ChessBase"]
[SourceQuality "1"]
[WhiteTeam "Netherlands"]
[BlackTeam "Greece"]
[WhiteTeamCountry "NED"]
[BlackTeamCountry "GRE"]
[TimeControl "40/5400+30:1800+30"]

{[%evp 25,97,52,54,36,66,13,40,45,57,50,110,108,180,125,102,102,111,115,112,95,139,114,147,156,144,125,139,124,201,112,114,117,112,120,133,131,127,104,95,80,129,114,131,132,120,118,160,162,266,258,293,325,326,331,325,317,295,227,496,513,637,583,613,607,2917,2299,2288,1816,3938,2240,5431,4565,29977,29975]} 1. e4 {[%emt 0:00:07]} e6 {[%emt 0:00:21]} 2. d4 {[%emt 0:00:16]} d5 {[%emt 0:00:08]} 3. Nc3 {[%emt 0:00:11]} Bb4 {[%emt 0:00:15]} 4. e5 {[%emt 0:01:06]} c5 {[%emt 0:00:20][%cal Bc7c5,Bc5d4][%mdl 32]} 5. a3 {[%emt 0:00:10]} Bxc3+ {[%emt 0:00:14]} 6. bxc3 {[%emt 0:00:08]} Ne7 {[%emt 0:00:08]} 7. Qg4 {[%emt 0:00:24]} cxd4 {[%emt 0:00:06]} 8. Qxg7 {[%emt 0:00:49]} Rg8 {[%emt 0:00:07]} 9. Qxh7 {[%emt 0:00:05]} Qc7 {[%emt 0:00:11]} 10. Qd3 {[%emt 0:01:05]} dxc3 {[%emt 0:00:06]} 11. Ne2 {[%emt 0:00:07]} Nbc6 {[%emt 0:00:28]} 12. Qxc3 {[%emt 0:01:11]} Bd7 {[%emt 0:05:42]} 13. f4 {[%emt 0:02:43]} Nf5 {[%emt 0:01:06]} 14. Ng3 {[%emt 0:07:31] C18: French: 3 Nc3 Bb4: Main line: 7 h4 and 7 Qg4.} d4 {[%emt 0:09:38]} 15. Qc5 {[%emt 0:04:18]} (15. Qc4 $1 $14) 15... b6 {[%emt 0:15:24]} 16. Qc4 {[%emt 0:00:28] White is slightly better.} Nxg3 {[%emt 0:04:03]} 17. hxg3 {[%emt 0:00:08][%cal Og3g4]} O-O-O {[%emt 0:00:05]} ({Black should play} 17... Rc8 $14) 18. Kf2 $16 {[%emt 0:04:30] [#]} Rdf8 $146 {[%emt 1:01:08]} (18... Ne7 $16) ({Predecessor:} 18... Kb8 19. Rh7 Be8 20. Bd3 Qe7 21. Bd2 Rc8 22. Qa2 Qc7 23. a4 Ne7 24. Bb4 Ka8 {1-0 Geiger,W (2035)-Scuderi,D (2134) Champion's League 07/C6 bd02 email 2007 [2]}) 19. Rh6 {[%emt 0:06:17]} (19. Rh7 $18) 19... Ne7 {[%emt 0:00:00]} 20. Qxc7+ {[%emt 0:06:23]} (20. Qxd4 $2 {perishes.} Nf5 21. Qc4 (21. Ba6+ $2 Kb8 $19) 21... Nxh6 $19) 20... Kxc7 {[%emt 0:00:00]} 21. a4 {[%emt 0:00:19][%cal Ba3a4,Ba4a5][%mdl 32]} Nf5 {[%emt 0:00:00][%csl LRg3,LRh6]} 22. Rh3 {[%emt 0:02:50]} f6 {[%emt 0:00:00]} 23. a5 {[%emt 0:03:56] Rh7 is the strong threat.} b5 {[%emt 0:00:00]} 24. Ba3 {[%emt 0:04:36]} Rf7 {[%emt 0:00:00]} 25. exf6 {[%emt 0:02:20]} Rxf6 {[%emt 0:00:00][%cal Oe6e5]} 26. Bd3 {[%emt 0:09:44]} Rf7 {[%emt 0:00:00]} (26... e5 $16 {is a better defense.} 27. Bc5 (27. fxe5 Rf7 $16) 27... Ne3) 27. Re1 {[%emt 0:05:20]} (27. Bc5 $18) 27... Ne3 {[%emt 0:00:00]} 28. Rh7 {[%emt 0:03:30]} Rxh7 {[%emt 0:00:00]} 29. Bxh7 {[%emt 0:00:05] A strong pair of Bishops.} Rg7 {[%emt 0:00:00]} 30. Bd3 {[%emt 0:04:56] Bc5 would be deadly.} Ng4+ {[%emt 0:00:00]} 31. Kg1 {[%emt 0:01:46] White is more active.} Ne3 {[%emt 0:00:00] [#]} 32. Bc1 $1 {[%emt 0:01:26]} Nf5 {[%emt 0:00:00]} ({Black should try} 32... Rxg3 33. Bxe3 dxe3) 33. Kf2 {[%emt 0:02:41]} Nxg3 {[%emt 0:00:00]} 34. Bb2 {[%emt 0:02:47]} Nf5 {[%emt 0:00:00] [#]} 35. Rg1 $1 {[%emt 0:01:32]} Rg4 {[%emt 0:07:00]} 36. g3 {[%emt 0:00:23][%cal Bg2g3,Bg3g4][%mdl 32]} Kb7 {[%emt 0:00:41]} (36... Rg8 {might work better.} 37. g4 {[%mdl 64] Deflection} Ne3) 37. Be2 $18 {[%emt 0:01:45]} Rg8 {[%emt 0:00:02]} 38. g4 {[%emt 0:00:37]} Ne3 {[%emt 0:00:03]} 39. Bxd4 {[%emt 0:00:23]} Nxc2 {[%emt 0:00:12]} 40. Be5 {[%emt 0:00:36] And now Rc1 would win.} Nb4 {[%emt 0:00:51]} 41. g5 {[%emt 0:32:05] Threatens to win with Rb1.} Be8 $2 {[%emt 0:30:28]} (41... Nc6 {was worth a try.} 42. Bf3 (42. Bxb5 Nxe5 {[%mdl 64] Discovered Attack} 43. Rb1 Nc6 $17) 42... Ka6) 42. Rb1 {[%emt 0:04:59]} Nd5 {[%emt 0:00:03]} 43. Bxb5 {[%emt 0:03:14]} Bxb5 {[%emt 0:00:40]} 44. Rxb5+ {[%emt 0:00:05] KRB-KRN} Kc6 {[%emt 0:00:00]} 45. Rb8 {[%emt 0:00:00]} Rxb8 {[%emt 0:00:00]} 46. Bxb8 {[%emt 0:00:00] Black must now prevent Kf3.} Kb7 {[%emt 0:00:00]} 47. Be5 {[%emt 0:00:00] Strongly threatening Kf3.} Ka6 {[%emt 0:00:00]} 48. Kf3 {[%emt 0:00:00]} Kxa5 {[%emt 0:00:00]} 49. Bf6 {[%emt 0:00:00] Weighted Error Value: White=0.10 (very precise) /Black=0.55} 1-0

[Event "ETCC Open 2023"]
[Site "Budva"]
[Date "2023.11.12"]
[Round "2.30"]
[White "Mastrovasilis, Dimitrios"]
[Black "Warmerdam, Max"]
[Result "1/2-1/2"]
[ECO "B51"]
[WhiteElo "2573"]
[BlackElo "2638"]
[Annotator "TA"]
[PlyCount "33"]
[EventDate "2023.11.10"]
[EventType "team-tourn"]
[EventCountry "MNE"]
[SourceTitle "playchess.com"]
[Source "ChessBase"]
[SourceQuality "1"]
[WhiteTeam "Greece"]
[BlackTeam "Netherlands"]
[WhiteTeamCountry "GRE"]
[BlackTeamCountry "NED"]
[TimeControl "40/5400+30:1800+30"]

{[%evp 12,33,10,10,12,10,15,21,21,8,11,19,16,10,13,11,14,0,16,0,16,0,12,0]} 1. e4 {[%emt 0:00:05]} c5 {[%emt 0:00:04]} 2. Nf3 {[%emt 0:00:13]} d6 {[%emt 0:00:06]} 3. Bb5+ {[%emt 0:00:21]} Nd7 {[%emt 0:00:40]} 4. d4 {[%emt 0:00:46]} cxd4 {[%emt 0:00:07]} 5. Qxd4 {[%emt 0:00:18]} a6 {[%emt 0:00:06]} 6. Bxd7+ {[%emt 0:00:27]} Bxd7 {[%emt 0:00:06]} 7. Nc3 {[%emt 0:00:39] The position is equal.} e6 {[%emt 0:01:13] B51: Sicilian: Moscow Variation (3 Bb5+) without 3...Bd7.} 8. Be3 {[%emt 0:01:29]} Bc6 {[%emt 0:01:21]} 9. O-O-O {[%emt 0:00:57]} Nf6 {[%emt 0:00:11]} 10. e5 {[%emt 0:02:40]} dxe5 {[%emt 0:00:07]} 11. Qxd8+ {[%emt 0:01:11]} Rxd8 {[%emt 0:00:05]} 12. Rxd8+ {[%emt 0:00:09]} Kxd8 {[%emt 0:00:03]} 13. Nxe5 {[%emt 0:00:13] [#]} Be8 $5 $146 {[%emt 0:00:04][%mdl 8] An interesting novelty.} (13... Bxg2 $2 14. Rg1 (14. Nxf7+ Ke8 $15) 14... Ke8 15. Rxg2 $18) ({Predecessor:} 13... Ke8 14. Nxc6 bxc6 15. h3 Nd5 16. Bd4 f6 17. Re1 Kf7 18. Na4 Nf4 19. g3 Nd5 20. c4 Nc7 21. Rd1 Ne8 22. Bc5 Bxc5 23. Nxc5 e5 {½-½ Sanati,C (1539)-Piskaykin,B (1634) GER-ch U12 Oberhof 2012 (6)}) 14. Nc4 {[%emt 0:19:49]} Bc6 {[%emt 0:11:21]} 15. Ne5 {[%emt 0:10:15]} Be8 {[%emt 0:00:10]} (15... Bxg2 $2 16. Rg1 $18 (16. Nxf7+ Ke8 $11)) 16. Nc4 {[%emt 0:04:47]} Bc6 {[%emt 0:04:02]} 17. Ne5 {[%emt 0:00:56] An uneventful encounter.   Weighted Error Value: White=0.06 (flawless) /Black=0.03 (flawless)} 1/2-1/2

[Event "ETCC Open 2023"]
[Site "Budva"]
[Date "2023.11.12"]
[Round "2.31"]
[White "Bok, Benjamin"]
[Black "Kourkoulos-Arditis, Stamatis"]
[Result "1/2-1/2"]
[ECO "E64"]
[WhiteElo "2621"]
[BlackElo "2543"]
[Annotator "TA"]
[PlyCount "105"]
[EventDate "2023.11.10"]
[EventType "team-tourn"]
[EventCountry "MNE"]
[SourceTitle "playchess.com"]
[Source "ChessBase"]
[SourceQuality "1"]
[WhiteTeam "Netherlands"]
[BlackTeam "Greece"]
[WhiteTeamCountry "NED"]
[BlackTeamCountry "GRE"]
[TimeControl "40/5400+30:1800+30"]

{[%evp 15,105,14,14,16,16,9,14,11,12,8,10,13,11,8,8,5,5,6,6,7,7,8,8,11,8,12,7,8,14,6,34,34,60,54,64,64,79,43,48,48,43,24,38,35,42,33,34,30,30,24,49,30,44,39,40,34,53,14,37,0,0,0,0,0,0,0,0,0,0,0,0,0,0,0,0,0,0,0,0,0,0,0,0,0,0,0,0,0,0,0,20,20]} 1. Nf3 {[%emt 0:00:04]} Nf6 {[%emt 0:00:05]} 2. g3 {[%emt 0:00:51]} g6 {[%emt 0:00:06]} 3. Bg2 {[%emt 0:00:13]} Bg7 {[%emt 0:00:04]} 4. c4 {[%emt 0:02:06]} O-O {[%emt 0:00:13]} 5. Nc3 {[%emt 0:01:13]} d6 {[%emt 0:00:13]} 6. d4 {[%emt 0:00:18]} c5 {[%emt 0:00:17]} 7. dxc5 {[%emt 0:04:04]} dxc5 {[%emt 0:01:41]} 8. Qxd8 {[%emt 0:00:12]} Rxd8 {[%emt 0:00:05]} 9. Be3 $1 {[%emt 0:00:05] 9.Be3 scores better than 9.Ne5. E64: King's Indian: Fianchetto: 6...c5 7 d5.} Nc6 {[%emt 0:00:57]} 10. Bxc5 {[%emt 0:00:04]} Nd7 {[%emt 0:04:24]} 11. Be3 {[%emt 0:00:15]} Nb6 {[%emt 0:00:08]} 12. Nd2 {[%emt 0:00:26]} Be6 {[%emt 0:00:15]} 13. Rc1 {[%emt 0:00:11]} Nxc4 {[%emt 0:00:25]} ({Much less strong is} 13... Bxc4 14. Bxb6 Rxd2 15. Kxd2 $16) 14. Nxc4 {[%emt 0:00:05]} Bxc4 {[%emt 0:00:05]} 15. Bxc6 {[%emt 0:00:08]} bxc6 {[%emt 0:00:03]} 16. b3 {[%emt 0:00:05]} Bd5 {[%emt 0:00:16] This pair of bishops is nice.} 17. f3 {[%emt 0:13:18]} Bxc3+ {[%emt 0:01:52]} 18. Rxc3 {[%emt 0:00:04]} a5 {[%emt 0:00:05]} 19. Kf2 {[%emt 0:00:08]} a4 {[%emt 0:00:11]} 20. bxa4 {[%emt 0:00:14]} Rxa4 {[%emt 0:00:08]} 21. a3 {[%emt 0:00:21]} Bc4 {[%emt 0:24:01]} 22. Bc5 {[%emt 0:21:45] [#]} e5 $146 {[%emt 0:06:40]} ({Predecessor:} 22... Rd7 23. Rhc1 Bb5 24. Re3 Kf8 25. g4 f6 26. Bb4 Kf7 27. h4 Raa7 28. Re4 h5 {1-0 Petrosyan,M (2613)-Fier,A (2549) Saint Louis Fall-B 2019 (1)}) 23. Be7 {[%emt 0:06:47]} Rd5 {[%emt 0:27:53]} 24. Bf6 {[%emt 0:06:44]} Bb5 {[%emt 0:01:18]} 25. Re3 {[%emt 0:09:29] Repels e4} e4 {[%emt 0:00:20]} 26. fxe4 {[%emt 0:00:21]} Rd2 {[%emt 0:01:03]} 27. Ra1 {[%emt 0:16:07]} Kf8 {[%emt 0:01:38]} 28. Ke1 {[%emt 0:03:10]} Rd7 {[%emt 0:01:44]} 29. g4 {[%emt 0:02:47]} h6 {[%emt 0:03:43]} 30. Ra2 {[%emt 0:02:57]} Ke8 {[%emt 0:03:53]} 31. Rc2 {[%emt 0:08:01]} Rd6 {[%emt 0:01:36]} 32. Bg7 {[%emt 0:01:35]} h5 {[%emt 0:05:38]} 33. e5 {[%emt 0:00:49]} Rd5 {[%emt 0:00:10]} 34. gxh5 {[%emt 0:00:19]} gxh5 {[%emt 0:00:05]} 35. Rh3 {[%emt 0:01:21]} Kd7 {[%emt 0:00:26]} 36. Bf6 {[%emt 0:00:38]} Ke6 {[%emt 0:01:16]} 37. Rcc3 {[%emt 0:00:56]} Re4 {[%emt 0:03:12] The position is equal.} 38. Rce3 {[%emt 0:00:17]} Rxe3 {[%emt 0:00:15]} 39. Rxe3 $11 {[%emt 0:00:01][%mdl 4096] Endgame KRB-KRB} Rd4 {[%emt 0:00:06]} 40. Rh3 {[%emt 0:01:26]} Re4 {[%emt 0:01:30]} 41. e3 {[%emt 0:09:13]} Ra4 {[%emt 0:01:29]} 42. Rxh5 {[%emt 0:02:08]} Rxa3 {[%emt 0:00:27]} 43. Kf2 {[%emt 0:02:11]} c5 {[%emt 0:02:27]} 44. Rh8 {[%emt 0:02:08]} c4 {[%emt 0:09:34]} 45. e4 {[%emt 0:03:33]} c3 {[%emt 0:04:14]} 46. Rc8 {[%emt 0:02:09] Wards off Bc6. Rc7 is the strong threat.} Kd7 {[%emt 0:03:42] Prevents Rc7+.} 47. Rxc3 {[%emt 0:02:12]} Rxc3 {[%emt 0:00:08]} 48. e6+ $1 {[%emt 0:00:03][%mdl 64] [#] Discovered Attack} Kxe6 {[%emt 0:00:07]} 49. Bxc3 {[%emt 0:00:02] KB-KB} f6 {[%emt 0:00:15]} 50. Ke3 {[%emt 0:00:16]} Be8 {[%emt 0:00:04]} 51. h4 {[%emt 0:00:04]} Bg6 {[%emt 0:00:05]} 52. Kf4 {[%emt 0:00:05]} Kf7 {[%emt 0:00:09]} 53. Bb2 {[%emt 0:00:21] Weighted Error Value: White=0.05 (flawless) /Black=0.05 (flawless)} 1/2-1/2